{"text_format":"1","workbook":"xlsx","n_sheets":4,"sheets":["Produktionsanlæg","Distributionsanlæg","Fællesfunktionsanlæg","Drop downliste"],"not_rendered":{"charts":0,"images":0,"macros":1,"external_links":0,"defined_names":2,"comments":0,"pivot_tables":0},"unopened":[],"bounds":{"document_bytes":16777216,"sheet_cells":100000,"rows_first":2000,"rows_last":500,"rows_between":2000,"halvings":0,"cell_chars":16384,"cell_head_chars":4096},"cells_cut":0,"cells_raw":0,"read":"whole","date_system":"1900"}

{"sheet":"Produktionsanlæg","index":0,"n_rows":593,"n_cols":6,"rows_kept":593,"cut":false,"hidden":false,"merged":[[0,5,1,5],[0,0,1,0],[0,1,1,1],[0,2,1,2],[0,3,1,3],[0,4,1,4]]}
["Produktionsanlæg","Enhed","Standard-levetid","Samlet mængde per 31/12-2014","Samlet mængde per 31/12-2015","Bemærk-ninger"]
[]
["Renseanlæg 1"]
["Mindre renseanlæg"]
["Mindre renseanlæg < 5.000 PE uden mulighed for opdeling","PE",40,0,null,"ingen ændringer ift til POLKA indberetninger 2009"]
["Renseanlæg >= 5.000 PE, Vandbehandling"]
["Indløb med riste, Konstruktioner","PE",60,125000,{"$f":"D7","v":125000}]
["Indløb med riste, Mek/EL","PE",20,125000,42000]
["Indløb med riste, SRO","PE",10,125000,42000]
["Indløb med riste, Mek/EL","PE",20,0,42000]
["Indløb med riste, SRO","PE",10,0,42000]
["Indløb med riste, Mek/EL","PE",20,0,42000]
["Indløb med riste, SRO","PE",10,0,42000]
["Sand- og fedtfang, Kontruktioner","PE",60,125000,{"$f":"D14","v":125000}]
["Sand- og fedtfang, Mek/EL","PE",20,125000,125000]
["Sand- og fedtfang, SRO","PE",10,125000,125000]
["Forklaring, Konstruktioner","PE",60,125000,85000]
["Forklaring, Mek/EL","PE",20,125000,85000]
["Forklaring, SRO","PE",10,125000,85000]
["Forklaring, Konstruktioner","PE",60,0,40000]
["Forklaring, Mek/EL","PE",20,0,40000]
["Forklaring, SRO","PE",10,0,40000]
["Beluftningstanke, Konstruktioner","PE",60,125000,42000]
["Beluftningstanke, Mek/EL","PE",20,125000,42000]
["Beluftningstanke, SRO","PE",10,125000,42000]
["Beluftningstanke, Konstruktioner","PE",60,0,42000]
["Beluftningstanke, Mek/EL","PE",20,0,42000]
["Beluftningstanke, SRO","PE",10,0,42000]
["Beluftningstanke, Konstruktioner","PE",60,0,42000]
["Beluftningstanke, Mek/EL","PE",20,0,42000]
["Beluftningstanke, SRO","PE",10,0,42000]
["Efterklaringstanke, Konstruktioner","PE",60,125000,28000]
["Efterklaringstanke, Mek/El","PE",20,125000,28000]
["Efterklaringstanke, SRO","PE",10,125000,28000]
["Efterklaringstanke, Konstruktioner","PE",60,0,28000]
["Efterklaringstanke, Mek/El","PE",20,0,28000]
["Efterklaringstanke, SRO","PE",10,0,28000]
["Efterklaringstanke, Konstruktioner","PE",60,0,28000]
["Efterklaringstanke, Mek/El","PE",20,0,28000]
["Efterklaringstanke, SRO","PE",10,0,28000]
["Efterklaringstanke, Konstruktioner","PE",60,0,42000]
["Efterklaringstanke, Mek/El","PE",20,0,42000]
["Efterklaringstanke, SRO","PE",10,0,42000]
["Efterbehandlingsanlæg (sandfilter), Konstruktioner","PE",60,0,0]
["Efterbehandlingsanlæg (sandfilter), Mek/EL","PE",20,0,0]
["Efterbehandlingsanlæg (sandfilter), SRO","PE",10,0,0]
["Renseanlæg >= 5.000 PE, Slambehandling"]
["Forafvanding, slam, Konstruktion","PE",60,125000,{"$f":"D48","v":125000}]
["Forafvanding, slam, Mek/EL","PE",20,125000,{"$f":"D49","v":125000}]
["Forafvanding, slam, SRO","PE",10,125000,125000]
["Rådnetanke, slam, Konstruktioner","PE",60,125000,63000]
["Rådnetanke, slam, Mek/EL","PE",20,125000,63000]
["Rådnetanke, slam, SRO","PE",10,125000,63000]
["Rådnetanke, slam, Konstruktioner","PE",60,0,63000]
["Rådnetanke, slam, Mek/EL","PE",20,0,63000]
["Rådnetanke, slam, SRO","PE",10,0,63000]
["Gasdisponering, Konstruktioner","PE",60,125000,125000]
["Gasdisponering, Mek/EL","PE",20,125000,125000]
["Gasdisponering, SRO","PE",10,125000,125000]
["Gasdisponering - elproduktionsanlæg, Konstruktioner","PE",60,0,0]
["Gasdisponering - elproduktionsanlæg, Mek/EL","PE",20,0,0]
["Gasdisponering - elproduktionsanlæg, SRO","PE",10,0,0]
["Slutafvanding, slam - lavteknologisk (slambede), Konstruktioner","PE",60,0,0]
["Slutafvanding, slam - lavteknologisk (slambede), Mek/EL","PE",20,0,0]
["Slutafvanding, slam - lavteknologisk (slambede), SRO","PE",10,0,0]
["Slutafvanding, slam - højteknologisk (centrifuger), Konstruktioner","PE",60,125000,125000]
["Slutafvanding, slam - højteknologisk (centrifuger), Mek/El","PE",20,125000,125000]
["Slutafvanding, slam - højteknologisk (centrifuger), SRO","PE",10,125000,125000]
["Renseanlæg >= 5.000 PE, Slamdisponering"]
["Slutdisponering, slam - lavteknologisk (slammineralisering), Konstruktioner","PE",60,0,{"$f":"D70","v":0}]
["Slutdisponering, slam - lavteknologisk (slammineralisering), Mek/EL","PE",20,0,{"$f":"D71","v":0}]
["Slutdisponering, slam - lavteknologisk (slammineralisering), SRO","PE",10,0,0]
["Slutdisponering, slam - højteknologisk (slamtørring), Konstruktioner","PE",60,125000,125000]
["Slutdisponering, slam - højteknologisk (slamtørring), Mek/EL","PE",20,125000,125000]
["Slutdisponering, slam - højteknologisk (slamtørring), SRO","PE",10,125000,125000]
["Slutdisponering, slam - højteknologisk (slamtørring og -forbrænding), Konstruktioner","PE",60,0,0]
["Slutdisponering, slam - højteknologisk (slamtørring og -forbrænding), Mek/EL","PE",20,0,0]
["Slutdisponering, slam - højteknologisk (slamtørring og -forbrænding), SRO","PE",10,0,0]
["Renseanlæg 2"]
["Mindre renseanlæg"]
["Mindre renseanlæg < 5.000 PE uden mulighed for opdeling","PE",40,0,0]
["Renseanlæg >= 5.000 PE, Vandbehandling"]
["Indløb med riste, Konstruktioner","PE",60,17000,{"$f":"D83","v":17000}]
["Indløb med riste, Mek/EL","PE",20,17000,{"$f":"D84","v":17000}]
["Indløb med riste, SRO","PE",10,17000,17000]
["Sand- og fedtfang, Kontruktioner","PE",60,17000,17000]
["Sand- og fedtfang, Mek/EL","PE",20,17000,17000]
["Sand- og fedtfang, SRO","PE",10,17000,17000]
["Forklaring, Konstruktioner","PE",60,0,0]
["Forklaring, Mek/EL","PE",20,0,0]
["Forklaring, SRO","PE",10,0,0]
["Beluftningstanke, Konstruktioner","PE",60,17000,8500]
["Beluftningstanke, Mek/EL","PE",20,17000,8500]
["Beluftningstanke, SRO","PE",10,17000,8500]
["Beluftningstanke, Konstruktioner","PE",60,0,8500]
["Beluftningstanke, Mek/EL","PE",20,0,8500]
["Beluftningstanke, SRO","PE",10,0,8500]
["Efterklaringstanke, Konstruktioner","PE",60,17000,8500]
["Efterklaringstanke, Mek/El","PE",20,17000,8500]
["Efterklaringstanke, SRO","PE",10,17000,8500]
["Efterklaringstanke, Konstruktioner","PE",60,0,8500]
["Efterklaringstanke, Mek/El","PE",20,0,8500]
["Efterklaringstanke, SRO","PE",10,0,8500]
["Efterbehandlingsanlæg (sandfilter), Konstruktioner","PE",60,0,0]
["Efterbehandlingsanlæg (sandfilter), Mek/EL","PE",20,0,0]
["Efterbehandlingsanlæg (sandfilter), SRO","PE",10,0,0]
["Renseanlæg >= 5.000 PE, Slambehandling"]
["Forafvanding, slam, Konstruktion","PE",60,0,{"$f":"D108","v":0}]
["Forafvanding, slam, Mek/EL","PE",20,0,{"$f":"D109","v":0}]
["Forafvanding, slam, SRO","PE",10,0,0]
["Rådnetanke, slam, Konstruktioner","PE",60,0,0]
["Rådnetanke, slam, Mek/EL","PE",20,0,0]
["Rådnetanke, slam, SRO","PE",10,0,0]
["Gasdisponering, Konstruktioner","PE",60,0,0]
["Gasdisponering, Mek/EL","PE",20,0,0]
["Gasdisponering, SRO","PE",10,0,0]
["Gasdisponering - elproduktionsanlæg, Konstruktioner","PE",60,0,0]
["Gasdisponering - elproduktionsanlæg, Mek/EL","PE",20,0,0]
["Gasdisponering - elproduktionsanlæg, SRO","PE",10,0,0]
["Slutafvanding, slam - lavteknologisk (slambede), Konstruktioner","PE",60,0,0]
["Slutafvanding, slam - lavteknologisk (slambede), Mek/EL","PE",20,0,0]
["Slutafvanding, slam - lavteknologisk (slambede), SRO","PE",10,0,0]
["Slutafvanding, slam - højteknologisk (centrifuger), Konstruktioner","PE",60,17000,17000]
["Slutafvanding, slam - højteknologisk (centrifuger), Mek/El","PE",20,17000,17000]
["Slutafvanding, slam - højteknologisk (centrifuger), SRO","PE",10,17000,17000]
["Renseanlæg >= 5.000 PE, Slamdisponering"]
["Slutdisponering, slam - lavteknologisk (slammineralisering), Konstruktioner","PE",60,0,{"$f":"D127","v":0}]
["Slutdisponering, slam - lavteknologisk (slammineralisering), Mek/EL","PE",20,0,{"$f":"D128","v":0}]
["Slutdisponering, slam - lavteknologisk (slammineralisering), SRO","PE",10,0,0]
["Slutdisponering, slam - højteknologisk (slamtørring), Konstruktioner","PE",60,0,0]
["Slutdisponering, slam - højteknologisk (slamtørring), Mek/EL","PE",20,0,0]
["Slutdisponering, slam - højteknologisk (slamtørring), SRO","PE",10,0,0]
["Slutdisponering, slam - højteknologisk (slamtørring og -forbrænding), Konstruktioner","PE",60,0,0]
["Slutdisponering, slam - højteknologisk (slamtørring og -forbrænding), Mek/EL","PE",20,0,0]
["Slutdisponering, slam - højteknologisk (slamtørring og -forbrænding), SRO","PE",10,0,0]
["Renseanlæg 3"]
["Mindre renseanlæg"]
["Mindre renseanlæg < 5.000 PE uden mulighed for opdeling","PE",40,3000,{"$f":"D138","v":3000}]
["Renseanlæg >= 5.000 PE, Vandbehandling"]
["Indløb med riste, Konstruktioner","PE",60,0,{"$f":"D140","v":0}]
["Indløb med riste, Mek/EL","PE",20,0,{"$f":"D141","v":0}]
["Indløb med riste, SRO","PE",10,0,0]
["Sand- og fedtfang, Kontruktioner","PE",60,0,0]
["Sand- og fedtfang, Mek/EL","PE",20,0,0]
["Sand- og fedtfang, SRO","PE",10,0,0]
["Forklaring, Konstruktioner","PE",60,0,0]
["Forklaring, Mek/EL","PE",20,0,0]
["Forklaring, SRO","PE",10,0,0]
["Beluftningstanke, Konstruktioner","PE",60,0,0]
["Beluftningstanke, Mek/EL","PE",20,0,0]
["Beluftningstanke, SRO","PE",10,0,0]
["Efterklaringstanke, Konstruktioner","PE",60,0,0]
["Efterklaringstanke, Mek/El","PE",20,0,0]
["Efterklaringstanke, SRO","PE",10,0,0]
["Efterbehandlingsanlæg (sandfilter), Konstruktioner","PE",60,0,0]
["Efterbehandlingsanlæg (sandfilter), Mek/EL","PE",20,0,0]
["Efterbehandlingsanlæg (sandfilter), SRO","PE",10,0,0]
["Renseanlæg >= 5.000 PE, Slambehandling"]
["Forafvanding, slam, Konstruktion","PE",60,0,{"$f":"D159","v":0}]
["Forafvanding, slam, Mek/EL","PE",20,0,{"$f":"D160","v":0}]
["Forafvanding, slam, SRO","PE",10,0,0]
["Rådnetanke, slam, Konstruktioner","PE",60,0,0]
["Rådnetanke, slam, Mek/EL","PE",20,0,0]
["Rådnetanke, slam, SRO","PE",10,0,0]
["Gasdisponering, Konstruktioner","PE",60,0,0]
["Gasdisponering, Mek/EL","PE",20,0,0]
["Gasdisponering, SRO","PE",10,0,0]
["Gasdisponering - elproduktionsanlæg, Konstruktioner","PE",60,0,0]
["Gasdisponering - elproduktionsanlæg, Mek/EL","PE",20,0,0]
["Gasdisponering - elproduktionsanlæg, SRO","PE",10,0,0]
["Slutafvanding, slam - lavteknologisk (slambede), Konstruktioner","PE",60,0,0]
["Slutafvanding, slam - lavteknologisk (slambede), Mek/EL","PE",20,0,0]
["Slutafvanding, slam - lavteknologisk (slambede), SRO","PE",10,0,0]
["Slutafvanding, slam - højteknologisk (centrifuger), Konstruktioner","PE",60,0,0]
["Slutafvanding, slam - højteknologisk (centrifuger), Mek/El","PE",20,0,0]
["Slutafvanding, slam - højteknologisk (centrifuger), SRO","PE",10,0,0]
["Renseanlæg >= 5.000 PE, Slamdisponering"]
["Slutdisponering, slam - lavteknologisk (slammineralisering), Konstruktioner","PE",60,0,{"$f":"D178","v":0}]
["Slutdisponering, slam - lavteknologisk (slammineralisering), Mek/EL","PE",20,0,{"$f":"D179","v":0}]
["Slutdisponering, slam - lavteknologisk (slammineralisering), SRO","PE",10,0,0]
["Slutdisponering, slam - højteknologisk (slamtørring), Konstruktioner","PE",60,0,0]
["Slutdisponering, slam - højteknologisk (slamtørring), Mek/EL","PE",20,0,0]
["Slutdisponering, slam - højteknologisk (slamtørring), SRO","PE",10,0,0]
["Slutdisponering, slam - højteknologisk (slamtørring og -forbrænding), Konstruktioner","PE",60,0,0]
["Slutdisponering, slam - højteknologisk (slamtørring og -forbrænding), Mek/EL","PE",20,0,0]
["Slutdisponering, slam - højteknologisk (slamtørring og -forbrænding), SRO","PE",10,0,0]
["Renseanlæg 4"]
["Mindre renseanlæg"]
["Mindre renseanlæg < 5.000 PE uden mulighed for opdeling","PE",40,0,{"$f":"D189","v":0}]
["Renseanlæg >= 5.000 PE, Vandbehandling"]
["Indløb med riste, Konstruktioner","PE",60,22500,{"$f":"D191","v":22500}]
["Indløb med riste, Mek/EL","PE",20,22500,22500]
["Indløb med riste, SRO","PE",10,22500,22500]
["Sand- og fedtfang, Kontruktioner","PE",60,22500,22500]
["Sand- og fedtfang, Mek/EL","PE",20,22500,22500]
["Sand- og fedtfang, SRO","PE",10,22500,22500]
["Forklaring, Konstruktioner","PE",60,0,0]
["Forklaring, Mek/EL","PE",20,0,0]
["Forklaring, SRO","PE",10,0,0]
["Beluftningstanke, Konstruktioner","PE",60,22500,22500]
["Beluftningstanke, Mek/EL","PE",20,22500,22500]
["Beluftningstanke, SRO","PE",10,22500,22500]
["Efterklaringstanke, Konstruktioner","PE",60,22500,22500]
["Efterklaringstanke, Mek/El","PE",20,22500,22500]
["Efterklaringstanke, SRO","PE",10,22500,22500]
["Efterbehandlingsanlæg (sandfilter), Konstruktioner","PE",60,0,0]
["Efterbehandlingsanlæg (sandfilter), Mek/EL","PE",20,0,0]
["Efterbehandlingsanlæg (sandfilter), SRO","PE",10,0,0]
["Renseanlæg >= 5.000 PE, Slambehandling"]
["Forafvanding, slam, Konstruktion","PE",60,0,0]
["Forafvanding, slam, Mek/EL","PE",20,0,0]
["Forafvanding, slam, SRO","PE",10,0,0]
["Rådnetanke, slam, Konstruktioner","PE",60,0,0]
["Rådnetanke, slam, Mek/EL","PE",20,0,0]
["Rådnetanke, slam, SRO","PE",10,0,0]
["Gasdisponering, Konstruktioner","PE",60,0,0]
["Gasdisponering, Mek/EL","PE",20,0,0]
["Gasdisponering, SRO","PE",10,0,0]
["Gasdisponering - elproduktionsanlæg, Konstruktioner","PE",60,0,0]
["Gasdisponering - elproduktionsanlæg, Mek/EL","PE",20,0,0]
["Gasdisponering - elproduktionsanlæg, SRO","PE",10,0,0]
["Slutafvanding, slam - lavteknologisk (slambede), Konstruktioner","PE",60,0,0]
["Slutafvanding, slam - lavteknologisk (slambede), Mek/EL","PE",20,0,0]
["Slutafvanding, slam - lavteknologisk (slambede), SRO","PE",10,0,0]
["Slutafvanding, slam - højteknologisk (centrifuger), Konstruktioner","PE",60,22500,22500]
["Slutafvanding, slam - højteknologisk (centrifuger), Mek/El","PE",20,22500,22500]
["Slutafvanding, slam - højteknologisk (centrifuger), SRO","PE",10,22500,22500]
["Renseanlæg >= 5.000 PE, Slamdisponering"]
["Slutdisponering, slam - lavteknologisk (slammineralisering), Konstruktioner","PE",60,0,0]
["Slutdisponering, slam - lavteknologisk (slammineralisering), Mek/EL","PE",20,0,0]
["Slutdisponering, slam - lavteknologisk (slammineralisering), SRO","PE",10,0,0]
["Slutdisponering, slam - højteknologisk (slamtørring), Konstruktioner","PE",60,0,0]
["Slutdisponering, slam - højteknologisk (slamtørring), Mek/EL","PE",20,0,0]
["Slutdisponering, slam - højteknologisk (slamtørring), SRO","PE",10,0,0]
["Slutdisponering, slam - højteknologisk (slamtørring og -forbrænding), Konstruktioner","PE",60,0,0]
["Slutdisponering, slam - højteknologisk (slamtørring og -forbrænding), Mek/EL","PE",20,0,0]
["Slutdisponering, slam - højteknologisk (slamtørring og -forbrænding), SRO","PE",10,0,0]
["Renseanlæg 5"]
["Mindre renseanlæg"]
["Mindre renseanlæg < 5.000 PE uden mulighed for opdeling","PE",40,0,{"$f":"D240","v":0}]
["Renseanlæg >= 5.000 PE, Vandbehandling"]
["Indløb med riste, Konstruktioner","PE",60,6500,{"$f":"D242","v":6500}]
["Indløb med riste, Mek/EL","PE",20,6500,6500]
["Indløb med riste, SRO","PE",10,6500,6500]
["Sand- og fedtfang, Kontruktioner","PE",60,6500,6500]
["Sand- og fedtfang, Mek/EL","PE",20,6500,6500]
["Sand- og fedtfang, SRO","PE",10,6500,6500]
["Forklaring, Konstruktioner","PE",60,0,0]
["Forklaring, Mek/EL","PE",20,0,0]
["Forklaring, SRO","PE",10,0,0]
["Beluftningstanke, Konstruktioner","PE",60,6500,6500]
["Beluftningstanke, Mek/EL","PE",20,6500,6500]
["Beluftningstanke, SRO","PE",10,6500,6500]
["Efterklaringstanke, Konstruktioner","PE",60,13000,6500]
["Efterklaringstanke, Mek/El","PE",20,13000,6500]
["Efterklaringstanke, SRO","PE",10,13000,6500]
["Efterbehandlingsanlæg (sandfilter), Konstruktioner","PE",60,0,0]
["Efterbehandlingsanlæg (sandfilter), Mek/EL","PE",20,0,0]
["Efterbehandlingsanlæg (sandfilter), SRO","PE",10,0,0]
["Renseanlæg >= 5.000 PE, Slambehandling"]
["Forafvanding, slam, Konstruktion","PE",60,0,0]
["Forafvanding, slam, Mek/EL","PE",20,0,0]
["Forafvanding, slam, SRO","PE",10,0,0]
["Rådnetanke, slam, Konstruktioner","PE",60,0,0]
["Rådnetanke, slam, Mek/EL","PE",20,0,0]
["Rådnetanke, slam, SRO","PE",10,0,0]
["Gasdisponering, Konstruktioner","PE",60,0,0]
["Gasdisponering, Mek/EL","PE",20,0,0]
["Gasdisponering, SRO","PE",10,0,0]
["Gasdisponering - elproduktionsanlæg, Konstruktioner","PE",60,0,0]
["Gasdisponering - elproduktionsanlæg, Mek/EL","PE",20,0,0]
["Gasdisponering - elproduktionsanlæg, SRO","PE",10,0,0]
["Slutafvanding, slam - lavteknologisk (slambede), Konstruktioner","PE",60,0,0]
["Slutafvanding, slam - lavteknologisk (slambede), Mek/EL","PE",20,0,0]
["Slutafvanding, slam - lavteknologisk (slambede), SRO","PE",10,0,0]
["Slutafvanding, slam - højteknologisk (centrifuger), Konstruktioner","PE",60,6500,6500]
["Slutafvanding, slam - højteknologisk (centrifuger), Mek/El","PE",20,6500,6500]
["Slutafvanding, slam - højteknologisk (centrifuger), SRO","PE",10,6500,6500]
["Renseanlæg >= 5.000 PE, Slamdisponering"]
["Slutdisponering, slam - lavteknologisk (slammineralisering), Konstruktioner","PE",60,0]
["Slutdisponering, slam - lavteknologisk (slammineralisering), Mek/EL","PE",20,0]
["Slutdisponering, slam - lavteknologisk (slammineralisering), SRO","PE",10,0]
["Slutdisponering, slam - højteknologisk (slamtørring), Konstruktioner","PE",60,0]
["Slutdisponering, slam - højteknologisk (slamtørring), Mek/EL","PE",20,0]
["Slutdisponering, slam - højteknologisk (slamtørring), SRO","PE",10,0]
["Slutdisponering, slam - højteknologisk (slamtørring og -forbrænding), Konstruktioner","PE",60,0]
["Slutdisponering, slam - højteknologisk (slamtørring og -forbrænding), Mek/EL","PE",20,0]
["Slutdisponering, slam - højteknologisk (slamtørring og -forbrænding), SRO","PE",10,0]
["Renseanlæg 6"]
["Mindre renseanlæg"]
["Mindre renseanlæg < 5.000 PE uden mulighed for opdeling","PE",40,0]
["Renseanlæg >= 5.000 PE, Vandbehandling"]
["Indløb med riste, Konstruktioner","PE",60,0]
["Indløb med riste, Mek/EL","PE",20,0]
["Indløb med riste, SRO","PE",10,0]
["Sand- og fedtfang, Kontruktioner","PE",60,0]
["Sand- og fedtfang, Mek/EL","PE",20,0]
["Sand- og fedtfang, SRO","PE",10,0]
["Forklaring, Konstruktioner","PE",60,0]
["Forklaring, Mek/EL","PE",20,0]
["Forklaring, SRO","PE",10,0]
["Beluftningstanke, Konstruktioner","PE",60,0]
["Beluftningstanke, Mek/EL","PE",20,0]
["Beluftningstanke, SRO","PE",10,0]
["Efterklaringstanke, Konstruktioner","PE",60,0]
["Efterklaringstanke, Mek/El","PE",20,0]
["Efterklaringstanke, SRO","PE",10,0]
["Efterbehandlingsanlæg (sandfilter), Konstruktioner","PE",60,0]
["Efterbehandlingsanlæg (sandfilter), Mek/EL","PE",20,0]
["Efterbehandlingsanlæg (sandfilter), SRO","PE",10,0]
["Renseanlæg >= 5.000 PE, Slambehandling"]
["Forafvanding, slam, Konstruktion","PE",60,0]
["Forafvanding, slam, Mek/EL","PE",20,0]
["Forafvanding, slam, SRO","PE",10,0]
["Rådnetanke, slam, Konstruktioner","PE",60,0]
["Rådnetanke, slam, Mek/EL","PE",20,0]
["Rådnetanke, slam, SRO","PE",10,0]
["Gasdisponering, Konstruktioner","PE",60,0]
["Gasdisponering, Mek/EL","PE",20,0]
["Gasdisponering, SRO","PE",10,0]
["Gasdisponering - elproduktionsanlæg, Konstruktioner","PE",60,0]
["Gasdisponering - elproduktionsanlæg, Mek/EL","PE",20,0]
["Gasdisponering - elproduktionsanlæg, SRO","PE",10,0]
["Slutafvanding, slam - lavteknologisk (slambede), Konstruktioner","PE",60,0]
["Slutafvanding, slam - lavteknologisk (slambede), Mek/EL","PE",20,0]
["Slutafvanding, slam - lavteknologisk (slambede), SRO","PE",10,0]
["Slutafvanding, slam - højteknologisk (centrifuger), Konstruktioner","PE",60,0]
["Slutafvanding, slam - højteknologisk (centrifuger), Mek/El","PE",20,0]
["Slutafvanding, slam - højteknologisk (centrifuger), SRO","PE",10,0]
["Renseanlæg >= 5.000 PE, Slamdisponering"]
["Slutdisponering, slam - lavteknologisk (slammineralisering), Konstruktioner","PE",60,0]
["Slutdisponering, slam - lavteknologisk (slammineralisering), Mek/EL","PE",20,0]
["Slutdisponering, slam - lavteknologisk (slammineralisering), SRO","PE",10,0]
["Slutdisponering, slam - højteknologisk (slamtørring), Konstruktioner","PE",60,0]
["Slutdisponering, slam - højteknologisk (slamtørring), Mek/EL","PE",20,0]
["Slutdisponering, slam - højteknologisk (slamtørring), SRO","PE",10,0]
["Slutdisponering, slam - højteknologisk (slamtørring og -forbrænding), Konstruktioner","PE",60,0]
["Slutdisponering, slam - højteknologisk (slamtørring og -forbrænding), Mek/EL","PE",20,0]
["Slutdisponering, slam - højteknologisk (slamtørring og -forbrænding), SRO","PE",10,0]
["Renseanlæg 7"]
["Mindre renseanlæg"]
["Mindre renseanlæg < 5.000 PE uden mulighed for opdeling","PE",40,0]
["Renseanlæg >= 5.000 PE, Vandbehandling"]
["Indløb med riste, Konstruktioner","PE",60,0]
["Indløb med riste, Mek/EL","PE",20,0]
["Indløb med riste, SRO","PE",10,0]
["Sand- og fedtfang, Kontruktioner","PE",60,0]
["Sand- og fedtfang, Mek/EL","PE",20,0]
["Sand- og fedtfang, SRO","PE",10,0]
["Forklaring, Konstruktioner","PE",60,0]
["Forklaring, Mek/EL","PE",20,0]
["Forklaring, SRO","PE",10,0]
["Beluftningstanke, Konstruktioner","PE",60,0]
["Beluftningstanke, Mek/EL","PE",20,0]
["Beluftningstanke, SRO","PE",10,0]
["Efterklaringstanke, Konstruktioner","PE",60,0]
["Efterklaringstanke, Mek/El","PE",20,0]
["Efterklaringstanke, SRO","PE",10,0]
["Efterbehandlingsanlæg (sandfilter), Konstruktioner","PE",60,0]
["Efterbehandlingsanlæg (sandfilter), Mek/EL","PE",20,0]
["Efterbehandlingsanlæg (sandfilter), SRO","PE",10,0]
["Renseanlæg >= 5.000 PE, Slambehandling"]
["Forafvanding, slam, Konstruktion","PE",60,0]
["Forafvanding, slam, Mek/EL","PE",20,0]
["Forafvanding, slam, SRO","PE",10,0]
["Rådnetanke, slam, Konstruktioner","PE",60,0]
["Rådnetanke, slam, Mek/EL","PE",20,0]
["Rådnetanke, slam, SRO","PE",10,0]
["Gasdisponering, Konstruktioner","PE",60,0]
["Gasdisponering, Mek/EL","PE",20,0]
["Gasdisponering, SRO","PE",10,0]
["Gasdisponering - elproduktionsanlæg, Konstruktioner","PE",60,0]
["Gasdisponering - elproduktionsanlæg, Mek/EL","PE",20,0]
["Gasdisponering - elproduktionsanlæg, SRO","PE",10,0]
["Slutafvanding, slam - lavteknologisk (slambede), Konstruktioner","PE",60,0]
["Slutafvanding, slam - lavteknologisk (slambede), Mek/EL","PE",20,0]
["Slutafvanding, slam - lavteknologisk (slambede), SRO","PE",10,0]
["Slutafvanding, slam - højteknologisk (centrifuger), Konstruktioner","PE",60,0]
["Slutafvanding, slam - højteknologisk (centrifuger), Mek/El","PE",20,0]
["Slutafvanding, slam - højteknologisk (centrifuger), SRO","PE",10,0]
["Renseanlæg >= 5.000 PE, Slamdisponering"]
["Slutdisponering, slam - lavteknologisk (slammineralisering), Konstruktioner","PE",60,0]
["Slutdisponering, slam - lavteknologisk (slammineralisering), Mek/EL","PE",20,0]
["Slutdisponering, slam - lavteknologisk (slammineralisering), SRO","PE",10,0]
["Slutdisponering, slam - højteknologisk (slamtørring), Konstruktioner","PE",60,0]
["Slutdisponering, slam - højteknologisk (slamtørring), Mek/EL","PE",20,0]
["Slutdisponering, slam - højteknologisk (slamtørring), SRO","PE",10,0]
["Slutdisponering, slam - højteknologisk (slamtørring og -forbrænding), Konstruktioner","PE",60,0]
["Slutdisponering, slam - højteknologisk (slamtørring og -forbrænding), Mek/EL","PE",20,0]
["Slutdisponering, slam - højteknologisk (slamtørring og -forbrænding), SRO","PE",10,0]
["Renseanlæg 8"]
["Mindre renseanlæg"]
["Mindre renseanlæg < 5.000 PE uden mulighed for opdeling","PE",40,0]
["Renseanlæg >= 5.000 PE, Vandbehandling"]
["Indløb med riste, Konstruktioner","PE",60,0]
["Indløb med riste, Mek/EL","PE",20,0]
["Indløb med riste, SRO","PE",10,0]
["Sand- og fedtfang, Kontruktioner","PE",60,0]
["Sand- og fedtfang, Mek/EL","PE",20,0]
["Sand- og fedtfang, SRO","PE",10,0]
["Forklaring, Konstruktioner","PE",60,0]
["Forklaring, Mek/EL","PE",20,0]
["Forklaring, SRO","PE",10,0]
["Beluftningstanke, Konstruktioner","PE",60,0]
["Beluftningstanke, Mek/EL","PE",20,0]
["Beluftningstanke, SRO","PE",10,0]
["Efterklaringstanke, Konstruktioner","PE",60,0]
["Efterklaringstanke, Mek/El","PE",20,0]
["Efterklaringstanke, SRO","PE",10,0]
["Efterbehandlingsanlæg (sandfilter), Konstruktioner","PE",60,0]
["Efterbehandlingsanlæg (sandfilter), Mek/EL","PE",20,0]
["Efterbehandlingsanlæg (sandfilter), SRO","PE",10,0]
["Renseanlæg >= 5.000 PE, Slambehandling"]
["Forafvanding, slam, Konstruktion","PE",60,0]
["Forafvanding, slam, Mek/EL","PE",20,0]
["Forafvanding, slam, SRO","PE",10,0]
["Rådnetanke, slam, Konstruktioner","PE",60,0]
["Rådnetanke, slam, Mek/EL","PE",20,0]
["Rådnetanke, slam, SRO","PE",10,0]
["Gasdisponering, Konstruktioner","PE",60,0]
["Gasdisponering, Mek/EL","PE",20,0]
["Gasdisponering, SRO","PE",10,0]
["Gasdisponering - elproduktionsanlæg, Konstruktioner","PE",60,0]
["Gasdisponering - elproduktionsanlæg, Mek/EL","PE",20,0]
["Gasdisponering - elproduktionsanlæg, SRO","PE",10,0]
["Slutafvanding, slam - lavteknologisk (slambede), Konstruktioner","PE",60,0]
["Slutafvanding, slam - lavteknologisk (slambede), Mek/EL","PE",20,0]
["Slutafvanding, slam - lavteknologisk (slambede), SRO","PE",10,0]
["Slutafvanding, slam - højteknologisk (centrifuger), Konstruktioner","PE",60,0]
["Slutafvanding, slam - højteknologisk (centrifuger), Mek/El","PE",20,0]
["Slutafvanding, slam - højteknologisk (centrifuger), SRO","PE",10,0]
["Renseanlæg >= 5.000 PE, Slamdisponering"]
["Slutdisponering, slam - lavteknologisk (slammineralisering), Konstruktioner","PE",60,0]
["Slutdisponering, slam - lavteknologisk (slammineralisering), Mek/EL","PE",20,0]
["Slutdisponering, slam - lavteknologisk (slammineralisering), SRO","PE",10,0]
["Slutdisponering, slam - højteknologisk (slamtørring), Konstruktioner","PE",60,0]
["Slutdisponering, slam - højteknologisk (slamtørring), Mek/EL","PE",20,0]
["Slutdisponering, slam - højteknologisk (slamtørring), SRO","PE",10,0]
["Slutdisponering, slam - højteknologisk (slamtørring og -forbrænding), Konstruktioner","PE",60,0]
["Slutdisponering, slam - højteknologisk (slamtørring og -forbrænding), Mek/EL","PE",20,0]
["Slutdisponering, slam - højteknologisk (slamtørring og -forbrænding), SRO","PE",10,0]
["Renseanlæg 9"]
["Mindre renseanlæg"]
["Mindre renseanlæg < 5.000 PE uden mulighed for opdeling","PE",40,0]
["Renseanlæg >= 5.000 PE, Vandbehandling"]
["Indløb med riste, Konstruktioner","PE",60,0]
["Indløb med riste, Mek/EL","PE",20,0]
["Indløb med riste, SRO","PE",10,0]
["Sand- og fedtfang, Kontruktioner","PE",60,0]
["Sand- og fedtfang, Mek/EL","PE",20,0]
["Sand- og fedtfang, SRO","PE",10,0]
["Forklaring, Konstruktioner","PE",60,0]
["Forklaring, Mek/EL","PE",20,0]
["Forklaring, SRO","PE",10,0]
["Beluftningstanke, Konstruktioner","PE",60,0]
["Beluftningstanke, Mek/EL","PE",20,0]
["Beluftningstanke, SRO","PE",10,0]
["Efterklaringstanke, Konstruktioner","PE",60,0]
["Efterklaringstanke, Mek/El","PE",20,0]
["Efterklaringstanke, SRO","PE",10,0]
["Efterbehandlingsanlæg (sandfilter), Konstruktioner","PE",60,0]
["Efterbehandlingsanlæg (sandfilter), Mek/EL","PE",20,0]
["Efterbehandlingsanlæg (sandfilter), SRO","PE",10,0]
["Renseanlæg >= 5.000 PE, Slambehandling"]
["Forafvanding, slam, Konstruktion","PE",60,0]
["Forafvanding, slam, Mek/EL","PE",20,0]
["Forafvanding, slam, SRO","PE",10,0]
["Rådnetanke, slam, Konstruktioner","PE",60,0]
["Rådnetanke, slam, Mek/EL","PE",20,0]
["Rådnetanke, slam, SRO","PE",10,0]
["Gasdisponering, Konstruktioner","PE",60,0]
["Gasdisponering, Mek/EL","PE",20,0]
["Gasdisponering, SRO","PE",10,0]
["Gasdisponering - elproduktionsanlæg, Konstruktioner","PE",60,0]
["Gasdisponering - elproduktionsanlæg, Mek/EL","PE",20,0]
["Gasdisponering - elproduktionsanlæg, SRO","PE",10,0]
["Slutafvanding, slam - lavteknologisk (slambede), Konstruktioner","PE",60,0]
["Slutafvanding, slam - lavteknologisk (slambede), Mek/EL","PE",20,0]
["Slutafvanding, slam - lavteknologisk (slambede), SRO","PE",10,0]
["Slutafvanding, slam - højteknologisk (centrifuger), Konstruktioner","PE",60,0]
["Slutafvanding, slam - højteknologisk (centrifuger), Mek/El","PE",20,0]
["Slutafvanding, slam - højteknologisk (centrifuger), SRO","PE",10,0]
["Renseanlæg >= 5.000 PE, Slamdisponering"]
["Slutdisponering, slam - lavteknologisk (slammineralisering), Konstruktioner","PE",60,0]
["Slutdisponering, slam - lavteknologisk (slammineralisering), Mek/EL","PE",20,0]
["Slutdisponering, slam - lavteknologisk (slammineralisering), SRO","PE",10,0]
["Slutdisponering, slam - højteknologisk (slamtørring), Konstruktioner","PE",60,0]
["Slutdisponering, slam - højteknologisk (slamtørring), Mek/EL","PE",20,0]
["Slutdisponering, slam - højteknologisk (slamtørring), SRO","PE",10,0]
["Slutdisponering, slam - højteknologisk (slamtørring og -forbrænding), Konstruktioner","PE",60,0]
["Slutdisponering, slam - højteknologisk (slamtørring og -forbrænding), Mek/EL","PE",20,0]
["Slutdisponering, slam - højteknologisk (slamtørring og -forbrænding), SRO","PE",10,0]
["Renseanlæg 10"]
["Mindre renseanlæg"]
["Mindre renseanlæg < 5.000 PE uden mulighed for opdeling","PE",40,0]
["Renseanlæg >= 5.000 PE, Vandbehandling"]
["Indløb med riste, Konstruktioner","PE",60,0]
["Indløb med riste, Mek/EL","PE",20,0]
["Indløb med riste, SRO","PE",10,0]
["Sand- og fedtfang, Kontruktioner","PE",60,0]
["Sand- og fedtfang, Mek/EL","PE",20,0]
["Sand- og fedtfang, SRO","PE",10,0]
["Forklaring, Konstruktioner","PE",60,0]
["Forklaring, Mek/EL","PE",20,0]
["Forklaring, SRO","PE",10,0]
["Beluftningstanke, Konstruktioner","PE",60,0]
["Beluftningstanke, Mek/EL","PE",20,0]
["Beluftningstanke, SRO","PE",10,0]
["Efterklaringstanke, Konstruktioner","PE",60,0]
["Efterklaringstanke, Mek/El","PE",20,0]
["Efterklaringstanke, SRO","PE",10,0]
["Efterbehandlingsanlæg (sandfilter), Konstruktioner","PE",60,0]
["Efterbehandlingsanlæg (sandfilter), Mek/EL","PE",20,0]
["Efterbehandlingsanlæg (sandfilter), SRO","PE",10,0]
["Renseanlæg >= 5.000 PE, Slambehandling"]
["Forafvanding, slam, Konstruktion","PE",60,0]
["Forafvanding, slam, Mek/EL","PE",20,0]
["Forafvanding, slam, SRO","PE",10,0]
["Rådnetanke, slam, Konstruktioner","PE",60,0]
["Rådnetanke, slam, Mek/EL","PE",20,0]
["Rådnetanke, slam, SRO","PE",10,0]
["Gasdisponering, Konstruktioner","PE",60,0]
["Gasdisponering, Mek/EL","PE",20,0]
["Gasdisponering, SRO","PE",10,0]
["Gasdisponering - elproduktionsanlæg, Konstruktioner","PE",60,0]
["Gasdisponering - elproduktionsanlæg, Mek/EL","PE",20,0]
["Gasdisponering - elproduktionsanlæg, SRO","PE",10,0]
["Slutafvanding, slam - lavteknologisk (slambede), Konstruktioner","PE",60,0]
["Slutafvanding, slam - lavteknologisk (slambede), Mek/EL","PE",20,0]
["Slutafvanding, slam - lavteknologisk (slambede), SRO","PE",10,0]
["Slutafvanding, slam - højteknologisk (centrifuger), Konstruktioner","PE",60,0]
["Slutafvanding, slam - højteknologisk (centrifuger), Mek/El","PE",20,0]
["Slutafvanding, slam - højteknologisk (centrifuger), SRO","PE",10,0]
["Renseanlæg >= 5.000 PE, Slamdisponering"]
["Slutdisponering, slam - lavteknologisk (slammineralisering), Konstruktioner","PE",60,0]
["Slutdisponering, slam - lavteknologisk (slammineralisering), Mek/EL","PE",20,0]
["Slutdisponering, slam - lavteknologisk (slammineralisering), SRO","PE",10,0]
["Slutdisponering, slam - højteknologisk (slamtørring), Konstruktioner","PE",60,0]
["Slutdisponering, slam - højteknologisk (slamtørring), Mek/EL","PE",20,0]
["Slutdisponering, slam - højteknologisk (slamtørring), SRO","PE",10,0]
["Slutdisponering, slam - højteknologisk (slamtørring og -forbrænding), Konstruktioner","PE",60,0]
["Slutdisponering, slam - højteknologisk (slamtørring og -forbrænding), Mek/EL","PE",20,0]
["Slutdisponering, slam - højteknologisk (slamtørring og -forbrænding), SRO","PE",10,0]
["Mindre renseanlæg"]
["Mindre renseanlæg < 5.000 PE uden mulighed for opdeling","PE",40,0]
["Renseanlæg >= 5.000 PE, Vandbehandling"]
["Indløb med riste, Konstruktioner","PE",60,0]
["Indløb med riste, Mek/EL","PE",20,0]
["Indløb med riste, SRO","PE",10,0]
["Sand- og fedtfang, Kontruktioner","PE",60,0]
["Sand- og fedtfang, Mek/EL","PE",20,0]
["Sand- og fedtfang, SRO","PE",10,0]
["Forklaring, Konstruktioner","PE",60,0]
["Forklaring, Mek/EL","PE",20,0]
["Forklaring, SRO","PE",10,0]
["Beluftningstanke, Konstruktioner","PE",60,0]
["Beluftningstanke, Mek/EL","PE",20,0]
["Beluftningstanke, SRO","PE",10,0]
["Efterklaringstanke, Konstruktioner","PE",60,0]
["Efterklaringstanke, Mek/El","PE",20,0]
["Efterklaringstanke, SRO","PE",10,0]
["Efterbehandlingsanlæg (sandfilter), Konstruktioner","PE",60,0]
["Efterbehandlingsanlæg (sandfilter), Mek/EL","PE",20,0]
["Efterbehandlingsanlæg (sandfilter), SRO","PE",10,0]
["Renseanlæg >= 5.000 PE, Slambehandling"]
["Forafvanding, slam, Konstruktion","PE",60,0]
["Forafvanding, slam, Mek/EL","PE",20,0]
["Forafvanding, slam, SRO","PE",10,0]
["Rådnetanke, slam, Konstruktioner","PE",60,0]
["Rådnetanke, slam, Mek/EL","PE",20,0]
["Rådnetanke, slam, SRO","PE",10,0]
["Gasdisponering, Konstruktioner","PE",60,0]
["Gasdisponering, Mek/EL","PE",20,0]
["Gasdisponering, SRO","PE",10,0]
["Gasdisponering - elproduktionsanlæg, Konstruktioner","PE",60,0]
["Gasdisponering - elproduktionsanlæg, Mek/EL","PE",20,0]
["Gasdisponering - elproduktionsanlæg, SRO","PE",10,0]
["Slutafvanding, slam - lavteknologisk (slambede), Konstruktioner","PE",60,0]
["Slutafvanding, slam - lavteknologisk (slambede), Mek/EL","PE",20,0]
["Slutafvanding, slam - lavteknologisk (slambede), SRO","PE",10,0]
["Slutafvanding, slam - højteknologisk (centrifuger), Konstruktioner","PE",60,0]
["Slutafvanding, slam - højteknologisk (centrifuger), Mek/El","PE",20,0]
["Slutafvanding, slam - højteknologisk (centrifuger), SRO","PE",10,0]
["Renseanlæg >= 5.000 PE, Slamdisponering"]
["Slutdisponering, slam - lavteknologisk (slammineralisering), Konstruktioner","PE",60,0]
["Slutdisponering, slam - lavteknologisk (slammineralisering), Mek/EL","PE",20,0]
["Slutdisponering, slam - lavteknologisk (slammineralisering), SRO","PE",10,0]
["Slutdisponering, slam - højteknologisk (slamtørring), Konstruktioner","PE",60,0]
["Slutdisponering, slam - højteknologisk (slamtørring), Mek/EL","PE",20,0]
["Slutdisponering, slam - højteknologisk (slamtørring), SRO","PE",10,0]
["Slutdisponering, slam - højteknologisk (slamtørring og -forbrænding), Konstruktioner","PE",60,0]
["Slutdisponering, slam - højteknologisk (slamtørring og -forbrænding), Mek/EL","PE",20,0]
["Slutdisponering, slam - højteknologisk (slamtørring og -forbrænding), SRO","PE",10,0]

{"sheet":"Distributionsanlæg","index":1,"n_rows":322,"n_cols":6,"rows_kept":322,"cut":false,"hidden":false,"merged":[[0,5,1,5],[0,0,1,0],[0,1,1,1],[0,2,1,2],[0,3,1,3],[0,4,1,4]]}
["Distributionsanlæg","Enhed","Standard-levetid","Samlet mængde per 31/12-2014","Samlet mængde per 31/12-2015","Bemærk-ninger"]
[]
["Ledningsnet - Land"]
["Ledningsnet ≤ Ø 200 mm ","meter",75,151069,153967.52999999997,"uden dræn, stikledning, privat, nedlagt"]
["Ø 200 mm < Ledningsnet ≤ Ø 500 mm ","meter",75,45348,40872.129999999997,"uden dræn, stikledning, privat, nedlagt"]
["Ø 500 mm < Ledningsnet ≤ Ø 800 mm","meter",75,9547,8640.840000000002]
["Ø 800 mm < Ledningsnet ≤ Ø 1000 mm","meter",75,1149.07,1029.4700000000003]
["Ø 1000 mm < Ledningsnet ≤ Ø 1200 mm","meter",75,1254,1255.51]
["Ø 1200 mm < Ledningsnet ≤ Ø 1600 mm","meter",75,1633.83,1633.8300000000002]
["Ledningsnet > Ø 1600 mm (rørbassiner og transportledninger)","meter",75,778.17000000000007,778.17000000000007]
["Strømpeforing ≤ Ø 200 mm","meter",50,4568,4954.6200000000008]
["Strømpeforing Ø 200 mm < Ledningsnet ≤ Ø 500 mm","meter",50,2722.0200000000013,3024.7300000000005]
["Strømpeforing Ø 500 mm < Ledningsnet ≤ Ø 800 mm","meter",50,70,129.55000000000001]
["Strømpeforing Ø 800 mm < Ledningsnet ≤ Ø 1000 mm","meter",50,null,207.68]
["Strømpeforing Ø 1000 mm < Ledningsnet ≤ Ø 1200 mm","meter",50,null,null,"stik i alt 25687m"]
["Strømpeforing Ø 1200 mm < Ledningsnet ≤ Ø 1600 mm","meter",50,null,null,{"$f":"25687/4.7","v":5465.3191489361698}]
["Ledningsnet - By"]
["Ledningsnet ≤ Ø 200 mm ","meter",75,318307,307588.02000000008,"uden dræn, stikledning, privat, nedlagt"]
["Ø 200 mm < Ledningsnet ≤ Ø 500 mm ","meter",75,179004,176066.13999999993]
["Ø 500 mm < Ledningsnet ≤ Ø 800 mm","meter",75,50586,50394.750000000022]
["Ø 800 mm < Ledningsnet ≤ Ø 1000 mm","meter",75,13316,14042.019999999999]
["Ø 1000 mm < Ledningsnet ≤ Ø 1200 mm","meter",75,5047,4199.7100000000009]
["Ø 1200 mm < Ledningsnet ≤ Ø 1600 mm","meter",75,2422,2185.3599999999997]
["Ledningsnet > Ø 1600 mm (rørbassiner og transportledninger)","meter",75,102,520.74]
["Strømpeforing ≤ Ø 200 mm","meter",50,3199,21442]
["Strømpeforing Ø 200 mm < Ledningsnet ≤ Ø 500 mm","meter",50,9958,28685]
["Strømpeforing Ø 500 mm < Ledningsnet ≤ Ø 800 mm","meter",50,1951,6105.7599999999984]
["Strømpeforing Ø 800 mm < Ledningsnet ≤ Ø 1000 mm","meter",50,484,953.36999999999989]
["Strømpeforing Ø 1000 mm < Ledningsnet ≤ Ø 1200 mm","meter",50,0,889.06999999999994,{"$f":"140500/4.8","v":29270.833333333336}]
["Strømpeforing Ø 1200 mm < Ledningsnet ≤ Ø 1600 mm","meter",50,0,184.26,"140500 m stik"]
["Ledningsnet - City"]
["Ledningsnet ≤ Ø 200 mm ","meter",75,18436,16991.75,"uden dræn, stikledning, privat, nedlagt"]
["Ø 200 mm < Ledningsnet ≤ Ø 500 mm ","meter",75,31587,28330.080000000009]
["Ø 500 mm < Ledningsnet ≤ Ø 800 mm","meter",75,6308,6820.0299999999979]
["Ø 800 mm < Ledningsnet ≤ Ø 1000 mm","meter",75,1942,1939.8000000000004]
["Ø 1000 mm < Ledningsnet ≤ Ø 1200 mm","meter",75,844.99,844.77]
["Ø 1200 mm < Ledningsnet ≤ Ø 1600 mm","meter",75,299.32000000000005,299.32]
["Ledningsnet > Ø 1600 mm (rørbassiner og transportledninger)","meter",75,0]
["Strømpeforing ≤ Ø 200 mm","meter",50,3199,4154.5100000000011]
["Strømpeforing Ø 200 mm < Ledningsnet ≤ Ø 500 mm","meter",50,9958,13869.250000000002]
["Strømpeforing Ø 500 mm < Ledningsnet ≤ Ø 800 mm","meter",50,1952,2146.9100000000003]
["Strømpeforing Ø 800 mm < Ledningsnet ≤ Ø 1000 mm","meter",50,484,812.59999999999991]
["Strømpeforing Ø 1000 mm < Ledningsnet ≤ Ø 1200 mm","meter",50,0,0,"15261 m stik"]
["Strømpeforing Ø 1200 mm < Ledningsnet ≤ Ø 1600 mm","meter",50,0,0,{"$f":"14105/4.8","v":2938.541666666667}]
["Ledningsnet - Indre city"]
["Ledningsnet ≤ Ø 200 mm ","meter",75,0,0]
["Ø 200 mm < Ledningsnet ≤ Ø 500 mm ","meter",75,0,0]
["Ø 500 mm < Ledningsnet ≤ Ø 800 mm","meter",75,0,0]
["Ø 800 mm < Ledningsnet ≤ Ø 1000 mm","meter",75,0,0]
["Ø 1000 mm < Ledningsnet ≤ Ø 1200 mm","meter",75,0,0]
["Ø 1200 mm < Ledningsnet ≤ Ø 1600 mm","meter",75,0,0]
["Ledningsnet > Ø 1600 mm (rørbassiner og transportledninger)","meter",75,0,0]
["Strømpeforing ≤ Ø 200 mm","meter",50,0,0]
["Strømpeforing Ø 200 mm < Ledningsnet ≤ Ø 500 mm","meter",50,0,0]
["Strømpeforing Ø 500 mm < Ledningsnet ≤ Ø 800 mm","meter",50,0,0]
["Strømpeforing Ø 800 mm < Ledningsnet ≤ Ø 1000 mm","meter",50,0,0]
["Strømpeforing Ø 1000 mm < Ledningsnet ≤ Ø 1200 mm","meter",50,0,0]
["Strømpeforing Ø 1200 mm < Ledningsnet ≤ Ø 1600 mm","meter",50,0,0]
["Brønde og stik, ledningsnet - Land"]
["Brønde","stk.",75,1465,1817]
["Stik","stk.",75,5430,5465]
["Brønde og stik, ledningsnet - By"]
["Brønde","stk.",75,16748,15959]
["Stik","stk.",75,39205,{"$f":"29270*1.34","v":39221.800000000003}]
["Brønde og stik, ledningsnet - City"]
["Brønde","stk.",75,885,872]
["Stik","stk.",75,3897,{"$f":"2938*1.325","v":3892.85}]
["Brønde og stik, ledningsnet - Indre city"]
["Brønde","stk.",75,0,0]
["Stik","stk.",75,0,0]
["Små pumpestationer inkl. SRO-anlæg - Land"]
["Tryksatte minipumpestationer (husstandssystemer)","stk.",30,54,{"$f":"54+24","v":78}]
["Pumpestationer i brønde (< 6,25 m2), Konstruktioner","stk.",50,65,67]
["Pumpestationer i brønde (< 6,25 m2), Mek/EL","stk.",20,65,67]
["Pumpestationer i brønde (< 6,25 m2), SRO","stk.",10,65,67]
["Pumpestationer m. overbygning (< 20 m2), Konstruktioner","stk.",50,0,0]
["Pumpestationer m. overbygning (< 20 m2), Mek/EL","stk.",20,0,0]
["Pumpestationer m. overbygning (< 20 m2), SRO","stk.",10,0,0]
["Pumpestationer i underjordiske bygværker (<50 m2), Konstruktioner","stk.",50,0,0]
["Pumpestationer i underjordiske bygværker (<50 m2), Mek/El","stk.",20,0,0]
["Pumpestationer i underjordiske bygværker (<50 m2), SRO","stk.",10,0,0]
["Små pumpestationer inkl. SRO-anlæg - By"]
["Tryksatte minipumpestationer (husstandssystemer)","stk.",30,2,2]
["Pumpestationer i brønde (< 6,25 m2), Konstruktioner","stk.",50,249,249,"Bassiner omlagt til pumpe siden 2009"]
["Pumpestationer i brønde (< 6,25 m2), Mek/EL","stk.",20,249,249,"Bassiner omlagt til pumpe siden 2009"]
["Pumpestationer i brønde (< 6,25 m2), SRO","stk.",10,249,249,"Bassiner omlagt til pumpe siden 2009"]
["Pumpestationer m. overbygning (< 20 m2), Konstruktioner","stk.",50,42,42]
["Pumpestationer m. overbygning (< 20 m2), Mek/EL","stk.",20,42,42]
["Pumpestationer m. overbygning (< 20 m2), SRO","stk.",10,42,42]
["Pumpestationer i underjordiske bygværker (<50 m2), Konstruktioner","stk.",50,35,35]
["Pumpestationer i underjordiske bygværker (<50 m2), Mek/El","stk.",20,35,35]
["Pumpestationer i underjordiske bygværker (<50 m2), SRO","stk.",10,35,35]
["Små pumpestationer inkl. SRO-anlæg - City"]
["Tryksatte minipumpestationer (husstandssystemer)","stk.",30,0,0]
["Pumpestationer i brønde (< 6,25 m2), Konstruktioner","stk.",50,0,0]
["Pumpestationer i brønde (< 6,25 m2), Mek/EL","stk.",20,0,0]
["Pumpestationer i brønde (< 6,25 m2), SRO","stk.",10,0,0]
["Pumpestationer m. overbygning (< 20 m2), Konstruktioner","stk.",50,0,0]
["Pumpestationer m. overbygning (< 20 m2), Mek/EL","stk.",20,0,0]
["Pumpestationer m. overbygning (< 20 m2), SRO","stk.",10,0,0]
["Pumpestationer i underjordiske bygværker (<50 m2), Konstruktioner","stk.",50,0,0]
["Pumpestationer i underjordiske bygværker (<50 m2), Mek/El","stk.",20,0,0]
["Pumpestationer i underjordiske bygværker (<50 m2), SRO","stk.",10,0,0]
["Små pumpestationer inkl. SRO-anlæg - Indre city"]
["Tryksatte minipumpestationer (husstandssystemer)","stk.",30,0,0]
["Pumpestationer i brønde (< 6,25 m2), Konstruktioner","stk.",50,0,0]
["Pumpestationer i brønde (< 6,25 m2), Mek/EL","stk.",20,0,0]
["Pumpestationer i brønde (< 6,25 m2), SRO","stk.",10,0,0]
["Pumpestationer m. overbygning (< 20 m2), Konstruktioner","stk.",50,0,0]
["Pumpestationer m. overbygning (< 20 m2), Mek/EL","stk.",20,0,0]
["Pumpestationer m. overbygning (< 20 m2), SRO","stk.",10,0,0]
["Pumpestationer i underjordiske bygværker (<50 m2), Konstruktioner","stk.",50,0,0]
["Pumpestationer i underjordiske bygværker (<50 m2), Mek/El","stk.",20,0,0]
["Pumpestationer i underjordiske bygværker (<50 m2), SRO","stk.",10,0,0]
["Store pumpestationer: inkl. SRO-anlæg - Land"]
["Kælder","m2",75,0,0]
["Pumpeinstallation Miljøklasse A (100-300 l/s) - Mek/EL","stk.",20,0,0]
["Pumpeinstallation Miljøklasse A (100-300 l/s) - SRO","stk.",10,0,0]
["Pumpeinstallation Miljøklasse A (300-600 l/s) - Mek/EL","stk.",20,0,0]
["Pumpeinstallation Miljøklasse A (300-600 l/s) - SRO","stk.",10,0,0]
["Pumpeinstallation Miljøklasse A (600-1.000 l/s) - Mek/EL","stk.",20,0,0]
["Pumpeinstallation Miljøklasse A (600-1.000 l/s) - SRO","stk.",10,0,0]
["Pumpeinstallation Miljøklasse A (1.000-1.500 l/s) - Mek/EL","stk.",20,0,0]
["Pumpeinstallation Miljøklasse A (1.000-1.500 l/s) - SRO","stk.",10,0,0]
["Pumpeinstallation Miljøklasse B (100-300 l/s) - Mek/EL","stk.",20,0,0]
["Pumpeinstallation Miljøklasse B (100-300 l/s) - SRO","stk.",10,0,0]
["Pumpeinstallation Miljøklasse B (300-600 l/s) - Mek/EL","stk.",20,0,0]
["Pumpeinstallation Miljøklasse B (300-600 l/s) - SRO","stk.",10,0,0]
["Pumpeinstallation Miljøklasse B (600-1.000 l/s) - Mek/EL","stk.",20,0,0]
["Pumpeinstallation Miljøklasse B (600-1.000 l/s) - SRO","stk.",10,0,0]
["Pumpeinstallation Miljøklasse B (1.000-1.500 l/s) - Mek/EL","stk.",20,0,0]
["Pumpeinstallation Miljøklasse B (1.000-1.500 l/s) - SRO","stk.",10,0,0]
["Overbygning","m2",75,0,0]
["Store pumpestationer: inkl. SRO-anlæg - By"]
["Kælder","m2",75,271,271]
["Pumpeinstallation Miljøklasse A (100-300 l/s) - Mek/EL","stk.",20,11,11]
["Pumpeinstallation Miljøklasse A (100-300 l/s) - SRO","stk.",10,11,11]
["Pumpeinstallation Miljøklasse A (300-600 l/s) - Mek/EL","stk.",20,3,3]
["Pumpeinstallation Miljøklasse A (300-600 l/s) - SRO","stk.",10,3,3]
["Pumpeinstallation Miljøklasse A (600-1.000 l/s) - Mek/EL","stk.",20,0,0]
["Pumpeinstallation Miljøklasse A (600-1.000 l/s) - SRO","stk.",10,0,0]
["Pumpeinstallation Miljøklasse A (1.000-1.500 l/s) - Mek/EL","stk.",20,1,1]
["Pumpeinstallation Miljøklasse A (1.000-1.500 l/s) - SRO","stk.",10,1,1]
["Pumpeinstallation Miljøklasse B (100-300 l/s) - Mek/EL","stk.",20]
["Pumpeinstallation Miljøklasse B (100-300 l/s) - SRO","stk.",10]
["Pumpeinstallation Miljøklasse B (300-600 l/s) - Mek/EL","stk.",20]
["Pumpeinstallation Miljøklasse B (300-600 l/s) - SRO","stk.",10]
["Pumpeinstallation Miljøklasse B (600-1.000 l/s) - Mek/EL","stk.",20]
["Pumpeinstallation Miljøklasse B (600-1.000 l/s) - SRO","stk.",10]
["Pumpeinstallation Miljøklasse B (1.000-1.500 l/s) - Mek/EL","stk.",20]
["Pumpeinstallation Miljøklasse B (1.000-1.500 l/s) - SRO","stk.",10]
["Overbygning ","m2",75,142,142]
["Store pumpestationer: inkl. SRO-anlæg - City"]
["Kælder","m2",75,0,0]
["Pumpeinstallation Miljøklasse A (100-300 l/s) - Mek/EL","stk.",20,0,0]
["Pumpeinstallation Miljøklasse A (100-300 l/s) - SRO","stk.",10,0,0]
["Pumpeinstallation Miljøklasse A (300-600 l/s) - Mek/EL","stk.",20,0,0]
["Pumpeinstallation Miljøklasse A (300-600 l/s) - SRO","stk.",10,0,0]
["Pumpeinstallation Miljøklasse A (600-1.000 l/s) - Mek/EL","stk.",20,0,0]
["Pumpeinstallation Miljøklasse A (600-1.000 l/s) - SRO","stk.",10,0,0]
["Pumpeinstallation Miljøklasse A (1.000-1.500 l/s) - Mek/EL","stk.",20,0,0]
["Pumpeinstallation Miljøklasse A (1.000-1.500 l/s) - SRO","stk.",10,0,0]
["Pumpeinstallation Miljøklasse B (100-300 l/s) - Mek/EL","stk.",20,0,0]
["Pumpeinstallation Miljøklasse B (100-300 l/s) - SRO","stk.",10,0,0]
["Pumpeinstallation Miljøklasse B (300-600 l/s) - Mek/EL","stk.",20,0,0]
["Pumpeinstallation Miljøklasse B (300-600 l/s) - SRO","stk.",10,0,0]
["Pumpeinstallation Miljøklasse B (600-1.000 l/s) - Mek/EL","stk.",20,0,0]
["Pumpeinstallation Miljøklasse B (600-1.000 l/s) - SRO","stk.",10,0,0]
["Pumpeinstallation Miljøklasse B (1.000-1.500 l/s) - Mek/EL","stk.",20,0,0]
["Pumpeinstallation Miljøklasse B (1.000-1.500 l/s) - SRO","stk.",10,0,0]
["Overbygning ","m2",75,0,0]
["Store pumpestationer: inkl. SRO-anlæg - Indre city"]
["Kælder","m2",75,0,0]
["Pumpeinstallation Miljøklasse A (100-300 l/s) - Mek/EL","stk.",20,0,0]
["Pumpeinstallation Miljøklasse A (100-300 l/s) - SRO","stk.",10,0,0]
["Pumpeinstallation Miljøklasse A (300-600 l/s) - Mek/EL","stk.",20,0,0]
["Pumpeinstallation Miljøklasse A (300-600 l/s) - SRO","stk.",10,0,0]
["Pumpeinstallation Miljøklasse A (600-1.000 l/s) - Mek/EL","stk.",20,0,0]
["Pumpeinstallation Miljøklasse A (600-1.000 l/s) - SRO","stk.",10,0,0]
["Pumpeinstallation Miljøklasse A (1.000-1.500 l/s) - Mek/EL","stk.",20,0,0]
["Pumpeinstallation Miljøklasse A (1.000-1.500 l/s) - SRO","stk.",10,0,0]
["Pumpeinstallation Miljøklasse B (100-300 l/s) - Mek/EL","stk.",20,0,0]
["Pumpeinstallation Miljøklasse B (100-300 l/s) - SRO","stk.",10,0,0]
["Pumpeinstallation Miljøklasse B (300-600 l/s) - Mek/EL","stk.",20,0,0]
["Pumpeinstallation Miljøklasse B (300-600 l/s) - SRO","stk.",10,0,0]
["Pumpeinstallation Miljøklasse B (600-1.000 l/s) - Mek/EL","stk.",20,0,0]
["Pumpeinstallation Miljøklasse B (600-1.000 l/s) - SRO","stk.",10,0,0]
["Pumpeinstallation Miljøklasse B (1.000-1.500 l/s) - Mek/EL","stk.",20,0,0]
["Pumpeinstallation Miljøklasse B (1.000-1.500 l/s) - SRO","stk.",10,0,0]
["Overbygning","m2",75,0,0]
["Overløbsbygværker - Land"]
["Kælder (< 7 m2) ","stk.",75,0,0]
["Kælder (7 - 20 m2) ","m2",75,0,0]
["Kælder (20 - 30 m2)","m2",75,0,0]
["Installationer \"ingen eller faste riste\" (mindre end 7 m2)","stk.",20,51,51]
["Installationer \"mekaniske riste og SRO\" Miljøklasse A. (7-20 m2) - Mek/EL","stk.",20,0,0]
["Installationer \"mekaniske riste og SRO\" Miljøklasse A. (7-20 m2) - SRO","stk.",10,0,0]
["Installationer \"mekaniske riste og SRO\" Miljøklasse A. (20-30 m2) - Mek/EL","stk.",20,0,0]
["Installationer \"mekaniske riste og SRO\" Miljøklasse A. (20-30 m2) - SRO","stk.",10,0,0]
["Installationer \"mekaniske riste og SRO\" Miljøklasse B. (7-20 m2) - Mek/EL","stk.",20,0,0]
["Installationer \"mekaniske riste og SRO\" Miljøklasse B. (7-20 m2) - SRO","stk.",10,0,0]
["Installationer \"mekaniske riste og SRO\" Miljøklasse B. (20-30 m2) - Mek/EL","stk.",20,0,0]
["Installationer \"mekaniske riste og SRO\" Miljøklasse B. (20-30 m2) - SRO","stk.",10,0,0]
["Overbygning","stk.",75,0,0]
["Overløbsbygværker - By"]
["Kælder (< 7 m2) ","stk.",75,0,0]
["Kælder (7 - 20 m2) ","m2",75,44,44]
["Kælder (20 - 30 m2)","m2",75,22,22]
["Installationer \"ingen eller faste riste\" (mindre end 7 m2)","stk.",20,339,339]
["Installationer \"mekaniske riste og SRO\" Miljøklasse A. (7-20 m2) - Mek/EL","stk.",20,8,8]
["Installationer \"mekaniske riste og SRO\" Miljøklasse A. (7-20 m2) - SRO","stk.",10,8,8]
["Installationer \"mekaniske riste og SRO\" Miljøklasse A. (20-30 m2) - Mek/EL","stk.",20,5,5]
["Installationer \"mekaniske riste og SRO\" Miljøklasse A. (20-30 m2) - SRO","stk.",10,5,5]
["Installationer \"mekaniske riste og SRO\" Miljøklasse B. (7-20 m2) - Mek/EL","stk.",20]
["Installationer \"mekaniske riste og SRO\" Miljøklasse B. (7-20 m2) - SRO","stk.",10]
["Installationer \"mekaniske riste og SRO\" Miljøklasse B. (20-30 m2) - Mek/EL","stk.",20]
["Installationer \"mekaniske riste og SRO\" Miljøklasse B. (20-30 m2) - SRO","stk.",10]
["Overbygning","stk.",75]
["Overløbsbygværker - City"]
["Kælder (< 7 m2) ","stk.",75,0,0]
["Kælder (7 - 20 m2) ","m2",75,0,0]
["Kælder (20 - 30 m2)","m2",75,0,0]
["Installationer \"ingen eller faste riste\" (mindre end 7 m2)","stk.",20,0,0]
["Installationer \"mekaniske riste og SRO\" Miljøklasse A. (7-20 m2) - Mek/EL","stk.",20,0,0]
["Installationer \"mekaniske riste og SRO\" Miljøklasse A. (7-20 m2) - SRO","stk.",10,0,0]
["Installationer \"mekaniske riste og SRO\" Miljøklasse A. (20-30 m2) - Mek/EL","stk.",20,0,0]
["Installationer \"mekaniske riste og SRO\" Miljøklasse A. (20-30 m2) - SRO","stk.",10,0,0]
["Installationer \"mekaniske riste og SRO\" Miljøklasse B. (7-20 m2) - Mek/EL","stk.",20,0,0]
["Installationer \"mekaniske riste og SRO\" Miljøklasse B. (7-20 m2) - SRO","stk.",10,0,0]
["Installationer \"mekaniske riste og SRO\" Miljøklasse B. (20-30 m2) - Mek/EL","stk.",20,0,0]
["Installationer \"mekaniske riste og SRO\" Miljøklasse B. (20-30 m2) - SRO","stk.",10,0,0]
["Overbygning (efter beliggenhed) ","stk.",75,0,0]
["Overløbsbygværker - Indre city"]
["Kælder (< 7 m2) ","stk.",75,0,0]
["Kælder (7 - 20 m2) ","m2",75,0,0]
["Kælder (20 - 30 m2)","m2",75,0,0]
["Installationer \"ingen eller faste riste\" (mindre end 7 m2)","stk.",20,0,0]
["Installationer \"mekaniske riste og SRO\" Miljøklasse A. (7-20 m2) - Mek/EL","stk.",20,0,0]
["Installationer \"mekaniske riste og SRO\" Miljøklasse A. (7-20 m2) - SRO","stk.",10,0,0]
["Installationer \"mekaniske riste og SRO\" Miljøklasse A. (20-30 m2) - Mek/EL","stk.",20,0,0]
["Installationer \"mekaniske riste og SRO\" Miljøklasse A. (20-30 m2) - SRO","stk.",10,0,0]
["Installationer \"mekaniske riste og SRO\" Miljøklasse B. (7-20 m2) - Mek/EL","stk.",20,0,0]
["Installationer \"mekaniske riste og SRO\" Miljøklasse B. (7-20 m2) - SRO","stk.",10,0,0]
["Installationer \"mekaniske riste og SRO\" Miljøklasse B. (20-30 m2) - Mek/EL","stk.",20,0,0]
["Installationer \"mekaniske riste og SRO\" Miljøklasse B. (20-30 m2) - SRO","stk.",10,0,0]
["Overbygning","stk.",75,0,0]
["Forsinkelsesbassiner - Land"]
["Forsinkelsesbassiner, lukkede uden automatisk rensning og SRO Miljøklasse B (mindre end 1.000 m3)","m³",50,0,0]
["Forsinkelsesbassiner, lukkede med automatisk rensning og SRO Miljøklasse A (500-1.000 m3) - Konstruktioner","m³",75,0,0]
["Forsinkelsesbassiner, lukkede med automatisk rensning og SRO Miljøklasse A (500-1.000 m3) - Mek/EL","m³",20,0,0]
["Forsinkelsesbassiner, lukkede med automatisk rensning og SRO Miljøklasse A (500-1.000 m3) - SRO ","m³",10,0,0]
["Forsinkelsesbassiner, lukkede med automatisk rensning og SRO Miljøklasse A (1.000-3.000 m3) - Konstruktioner","m³",75,0,0]
["Forsinkelsesbassiner, lukkede med automatisk rensning og SRO Miljøklasse A (1.000-3.000 m3) - Mek/EL","m³",20,0,0]
["Forsinkelsesbassiner, lukkede med automatisk rensning og SRO Miljøklasse A (1.000-3.000 m3) - SRO","m³",10,0,0]
["Forsinkelsesbassiner, lukkede med automatisk rensning og SRO Miljøklasse A (5.000-10.000 m3) - Konstruktionre","m³",75,0,0]
["Forsinkelsesbassiner, lukkede med automatisk rensning og SRO Miljøklasse A (5.000-10.000 m3) - Mek/EL","m³",20,0,0]
["Forsinkelsesbassiner, lukkede med automatisk rensning og SRO Miljøklasse A (5.000-10.000 m3) - SRO","m³",10,0,0]
["Forsinkelsesbassiner, lukkede med automatisk rensning og SRO Miljøklasse A (større end 10.000 m3) - Konstruktioner","m³",75,0,0]
["Forsinkelsesbassiner, lukkede med automatisk rensning og SRO Miljøklasse A (større end 10.000 m3) - Mek/EL","m³",20,0,0]
["Forsinkelsesbassiner, lukkede med automatisk rensning og SRO Miljøklasse A (større end 10.000 m3) - SRO","m³",10,0,0]
["Forsinkelsesbassiner - By"]
["Forsinkelsesbassiner, lukkede uden automatisk rensning og SRO Miljøklasse B (mindre end 1.000 m3)","m³",50,1733,1733]
["Forsinkelsesbassiner, lukkede med automatisk rensning og SRO Miljøklasse A (500-1.000 m3) - Konstruktioner","m³",75,0,0]
["Forsinkelsesbassiner, lukkede med automatisk rensning og SRO Miljøklasse A (500-1.000 m3) - Mek/EL","m³",20,0,0]
["Forsinkelsesbassiner, lukkede med automatisk rensning og SRO Miljøklasse A (500-1.000 m3) - SRO ","m³",10,0,0]
["Forsinkelsesbassiner, lukkede med automatisk rensning og SRO Miljøklasse A (1.000-3.000 m3) - Konstruktioner","m³",75,17450,17450]
["Forsinkelsesbassiner, lukkede med automatisk rensning og SRO Miljøklasse A (1.000-3.000 m3) - Mek/EL","m³",20,17450,17450]
["Forsinkelsesbassiner, lukkede med automatisk rensning og SRO Miljøklasse A (1.000-3.000 m3) - SRO","m³",10,17450,17450]
["Forsinkelsesbassiner, lukkede med automatisk rensning og SRO Miljøklasse A (5.000-10.000 m3) - Konstruktionre","m³",75,0,0]
["Forsinkelsesbassiner, lukkede med automatisk rensning og SRO Miljøklasse A (5.000-10.000 m3) - Mek/EL","m³",20,0,0]
["Forsinkelsesbassiner, lukkede med automatisk rensning og SRO Miljøklasse A (5.000-10.000 m3) - SRO","m³",10,0,0]
["Forsinkelsesbassiner, lukkede med automatisk rensning og SRO Miljøklasse A (større end 10.000 m3) - Konstruktioner","m³",75,0,0]
["Forsinkelsesbassiner, lukkede med automatisk rensning og SRO Miljøklasse A (større end 10.000 m3) - Mek/EL","m³",20,0,0]
["Forsinkelsesbassiner, lukkede med automatisk rensning og SRO Miljøklasse A (større end 10.000 m3) - SRO","m³",10,0,0]
["Forsinkelsesbassiner - City"]
["Forsinkelsesbassiner, lukkede uden automatisk rensning og SRO Miljøklasse B (mindre end 1.000 m3)","m³",50,0,0]
["Forsinkelsesbassiner, lukkede med automatisk rensning og SRO Miljøklasse A (500-1.000 m3) - Konstruktioner","m³",75,0,0]
["Forsinkelsesbassiner, lukkede med automatisk rensning og SRO Miljøklasse A (500-1.000 m3) - Mek/EL","m³",20,0,0]
["Forsinkelsesbassiner, lukkede med automatisk rensning og SRO Miljøklasse A (500-1.000 m3) - SRO ","m³",10,0,0]
["Forsinkelsesbassiner, lukkede med automatisk rensning og SRO Miljøklasse A (1.000-3.000 m3) - Konstruktioner","m³",75,0,0]
["Forsinkelsesbassiner, lukkede med automatisk rensning og SRO Miljøklasse A (1.000-3.000 m3) - Mek/EL","m³",20,0,0]
["Forsinkelsesbassiner, lukkede med automatisk rensning og SRO Miljøklasse A (1.000-3.000 m3) - SRO","m³",10,0,0]
["Forsinkelsesbassiner, lukkede med automatisk rensning og SRO Miljøklasse A (5.000-10.000 m3) - Konstruktionre","m³",75,0,0]
["Forsinkelsesbassiner, lukkede med automatisk rensning og SRO Miljøklasse A (5.000-10.000 m3) - Mek/EL","m³",20,0,0]
["Forsinkelsesbassiner, lukkede med automatisk rensning og SRO Miljøklasse A (5.000-10.000 m3) - SRO","m³",10,0,0]
["Forsinkelsesbassiner, lukkede med automatisk rensning og SRO Miljøklasse A (større end 10.000 m3) - Konstruktioner","m³",75,0,0]
["Forsinkelsesbassiner, lukkede med automatisk rensning og SRO Miljøklasse A (større end 10.000 m3) - Mek/EL","m³",20,0,0]
["Forsinkelsesbassiner, lukkede med automatisk rensning og SRO Miljøklasse A (større end 10.000 m3) - SRO","m³",10,0,0]
["Forsinkelsesbassiner - Indre city"]
["Forsinkelsesbassiner, lukkede uden automatisk rensning og SRO Miljøklasse B (mindre end 1.000 m3)","m³",50,0]
["Forsinkelsesbassiner, lukkede med automatisk rensning og SRO Miljøklasse A (500-1.000 m3) - Konstruktioner","m³",75,0]
["Forsinkelsesbassiner, lukkede med automatisk rensning og SRO Miljøklasse A (500-1.000 m3) - Mek/EL","m³",20,0]
["Forsinkelsesbassiner, lukkede med automatisk rensning og SRO Miljøklasse A (500-1.000 m3) - SRO ","m³",10,0]
["Forsinkelsesbassiner, lukkede med automatisk rensning og SRO Miljøklasse A (1.000-3.000 m3) - Konstruktioner","m³",75,0]
["Forsinkelsesbassiner, lukkede med automatisk rensning og SRO Miljøklasse A (1.000-3.000 m3) - Mek/EL","m³",20,0]
["Forsinkelsesbassiner, lukkede med automatisk rensning og SRO Miljøklasse A (1.000-3.000 m3) - SRO","m³",10,0]
["Forsinkelsesbassiner, lukkede med automatisk rensning og SRO Miljøklasse A (5.000-10.000 m3) - Konstruktionre","m³",75,0]
["Forsinkelsesbassiner, lukkede med automatisk rensning og SRO Miljøklasse A (5.000-10.000 m3) - Mek/EL","m³",20,0]
["Forsinkelsesbassiner, lukkede med automatisk rensning og SRO Miljøklasse A (5.000-10.000 m3) - SRO","m³",10,0]
["Forsinkelsesbassiner, lukkede med automatisk rensning og SRO Miljøklasse A (større end 10.000 m3) - Konstruktioner","m³",75,0]
["Forsinkelsesbassiner, lukkede med automatisk rensning og SRO Miljøklasse A (større end 10.000 m3) - Mek/EL","m³",20,0]
["Forsinkelsesbassiner, lukkede med automatisk rensning og SRO Miljøklasse A (større end 10.000 m3) - SRO","m³",10,0]
["Sparebassin/laguner - Land"]
["Jordbassin Klasse B","m³",50,0]
["Jordbassin Klasse A","m³",50,0]
["Indløb-/udløbsarrangement","stk.",75,27]
["Andre bygninger (tekniske installationer, målere mv.)","m2",75,0]
["Sparebassin/laguner - By"]
["Jordbassin Klasse B","m³",50,200675,200675]
["Jordbassin Klasse A","m³",50,9200,9200]
["Indløb-/udløbsarrangement","stk.",75,148,148]
["Andre bygninger (tekniske installationer, målere mv.)","m2",75,1,1]
["Sparebassin/laguner - City"]
["Jordbassin Klasse B","m³",50,0]
["Jordbassin Klasse A","m³",50,0]
["Indløb-/udløbsarrangement","stk.",75,0]
["Andre bygninger (tekniske installationer, målere mv.)","m2",75,0]
["Sparebassin/laguner  - Indre city"]
["Jordbassin Klasse B","m³",50,0]
["Jordbassin Klasse A","m³",50,0]
["Indløb-/udløbsarrangement","stk.",75,0]
["Andre bygninger (tekniske installationer, målere mv.)","m2",75,0]

{"sheet":"Fællesfunktionsanlæg","index":2,"n_rows":16,"n_cols":6,"rows_kept":16,"cut":false,"hidden":false,"merged":[[0,5,1,5],[0,0,1,0],[0,1,1,1],[0,2,1,2],[0,3,1,3],[0,4,1,4]]}
["Fællesfunktionsanlæg","Enhed","Standard-levetid","Samlet mængde per 31/12-2014","Samlet mængde per 31/12-2015","Bemærk-ninger"]
[]
[]
["Andre"]
["Administrationbygninger","m2",75,960,960]
["Arbejdsplads og kontor","stk.",5,0,{"$f":"D6","v":0}]
["Køretøjer, personbil","stk.",5,0,{"$f":"D7","v":0}]
["Køretøjer, små lastvogne (< 3.500 kg.)","stk.",5,0,0]
["Køretøjer, store lastvogne (> 3.500 kg.)","stk.",5,0,0]
["Køretøjer, entreprenørmaskiner","stk.",5,0,0]
["Slamsugere","stk.",5,0,0]
["Værksteder, garager","m2",75,764,764]
["Øvrige"]
["Solcelleanlæg","KWh",25,550,{"$f":"D14","v":550}]
["EDB, tablets og navigationsudstyr","stk.",5,0,{"$f":"D15","v":0}]
["Elektroniske kort","stk.",5,0,{"$f":"D16","v":0}]

{"sheet":"Drop downliste","index":3,"n_rows":13,"n_cols":11,"rows_kept":13,"cut":false,"hidden":true,"merged":[]}
[]
[null,"datakvalitet","Serviceselskab","Overheads","Infrastrukturomlægninger","Infrastruktur per år","år 1","år 2","år 3","år 4","år 5"]
[null,null,null,null,null,null,2010,2011,2012,2013,2014]
[null,1,"ja","Full-cost","ja",0.1]
[null,2,"nej","Direct-cost","nej",0.2]
[null,3,null,"Nøgletalsfordeling",null,0.3]
[null,null,null,"Activity based cost",null,0.4]
[null,null,null,"Andet",null,0.5]
[null,null,null,null,null,0.6]
[null,null,null,null,null,0.7]
[null,null,null,null,null,0.8]
[null,null,null,null,null,0.9]
[null,null,null,null,null,1]